{"text_format":"1","workbook":"xlsx","n_sheets":2,"sheets":["Recap.Equipe","Reporting"],"not_rendered":{"charts":0,"images":0,"macros":1,"external_links":1,"defined_names":7,"comments":0,"pivot_tables":0},"unopened":[],"bounds":{"document_bytes":16777216,"sheet_cells":100000,"rows_first":2000,"rows_last":500,"rows_between":2000,"halvings":0,"cell_chars":16384,"cell_head_chars":4096},"cells_cut":0,"cells_raw":0,"read":"whole","date_system":"1900"}

{"sheet":"Recap.Equipe","index":0,"n_rows":16,"n_cols":60,"rows_kept":16,"cut":false,"hidden":false,"merged":[]}
[]
[]
[]
[]
[]
[]
[]
[]
[]
[]
["CONTRAT","DATE D EMBAUCHE","FONCTION","NOM","Prénom",null,{"$f":"[1]database!A2","v":"Parties communes - Bureaux, cabinets de consulations, radiologie, laboratoire"},{"$f":"[1]database!A3","v":"Parties communes - IRM"},{"$f":"[1]database!A4","v":"Parties communes - Chimiothérapie"},{"$f":"[1]database!A5","v":"Parties communes - Scintigraphie"},{"$f":"[1]database!A6","v":"Services"},{"$f":"[1]database!A7","v":"Services - Zone 4"},{"$f":"[1]database!A8","v":"Ambulatoire - Dialyse"},{"$f":"[1]database!A9","v":"Bloc opératoire - Début de journée"},{"$f":"[1]database!A10","v":"Bloc opératoire  - Fin de  journée"},{"$f":"[1]database!A11","v":"Hôtesse prise de commande repas et accueil"},{"$f":"[1]database!B1","v":"Hygiène des mains"},{"$f":"[1]database!C1","v":"Le savoir  être dont charte de bonne conduite"},{"$f":"[1]database!D1","v":"Tenue de travail services"},{"$f":"[1]database!E1","v":"Tenue de travail au bloc opératoire"},{"$f":"[1]database!F1","v":"La classification des locaux"},{"$f":"[1]database!G1","v":"Les fondamentaux du bionettoyage (propre/sale, haut, pas) etc"},{"$f":"[1]database!H1","v":"Protocole de de préparation et d'utilisation du chariot"},{"$f":"[1]database!I1","v":"L'utilisation des produits et leur dilution"},{"$f":"[1]database!J1","v":"L'utilisation  des lavettes/rasants"},{"$f":"[1]database!K1","v":"La désinfection des siphons"},{"$f":"[1]database!L1","v":"Le principe de l'alternance"},{"$f":"[1]database!M1","v":"La désinfection des bennes déchets"},{"$f":"[1]database!N1","v":"Le protocoles de nettoyage des parties communes zone 1 et 2"},{"$f":"[1]database!O1","v":"Le protocoles de nettoyage des parties communes zone 3 et 4"},{"$f":"[1]database!P1","v":"Protocole de nettoyage sanitaires et salle de bain"},{"$f":"[1]database!Q1","v":"Protocole nettoyage d'une chambre en quotidien et sortie"},{"$f":"[1]database!R1","v":"Protocole nettoyage d'une chambre en  isolement infectieux en quotidien et sortie"},{"$f":"[1]database!S1","v":"Protocole nettoyage d'une chambre en  isolement protecteur en quotidien et sortie"},{"$f":"[1]database!T1","v":"Distribution des repas et les isolements et débarrassage"},{"$f":"[1]database!U1","v":"Prise de commande des repas"},{"$f":"[1]database!V1","v":"Commande des produits"},{"$f":"[1]database!W1","v":"Gestion du linge plat et distribution"},{"$f":"[1]database!X1","v":"Gestion des tenues et distribution"},{"$f":"[1]database!Y1","v":"Gestions du nettoyage des lavettes et des rasants"},{"$f":"[1]database!Z1","v":"Circuit déchets, linge, linge de nettoyage "},{"$f":"[1]database!AA1","v":"La répartition des taches"},{"$f":"[1]database!AB1","v":"Utilisation autolaveuse"},{"$f":"[1]database!AC1","v":"Utilisation  monobrosse"},{"$f":"[1]database!AD1","v":"Utilisation des machines vapeur"},{"$f":"[1]database!AE1","v":"Nettoyage dune salle de  bloc début de programme"},{"$f":"[1]database!AF1","v":"Le remplissage de la grille d'autocontrole"},{"$f":"[1]database!AG1","v":"Nettoyage dune salle de  bloc intersalle"},{"$f":"[1]database!AH1","v":"Nettoyage dune salle de  bloc fin de programme"},{"$f":"[1]database!AI1","v":"Nettoyage dune salle de  bloc infecté"},{"$f":"[1]database!AJ1","v":"Nettoyage dune salle de  bloc fin de programme"},{"$f":"[1]database!AK1","v":"Entetien de fond des sols"},{"$f":"[1]database!AL1","v":"La gestion des zones à risques (zone exposition, etc)"},{"$f":"[1]database!AM1","v":"le remplissage de la grille d'autocontrole"},{"$f":"[1]database!AN1","v":"Sensibilisation AES"},"Date de dernière formation annuelle","Date de dernière check list","% de conformité de la dernière check list","Sortie de la société","Employeur"]
[{"$f":"A13","v":0},"00:00:00","00:00:00","ZZZ","ZZZ","QUOI","X","X","X","X","X","X","X","X","X","X",null,null,null,null,null,null,null,null,null,null,null,null,null,null,null,null,null,null,null,null,null,null,null,null,null,null,null,null,null,null,null,null,null,null,null,null,null,null,null,null,null,null,{"$f":"BG14","v":0},{"$f":"BH14","v":0}]
[0,"00:00:00","00:00:00","ZZZ","ZZZ","QUAND","2017-07-09",null,null,null,null,null,"10/10/2017","10/10/2017",null,null,"2017-10-01","2017-03-02",null,null,null,null,null,null,null,null,null,null,null,null,null,null,null,null,null,null,null,null,null,null,null,null,null,null,null,null,null,null,null,null,null,null,null,null,null,null,null,null,{"$f":"BG14","v":0},{"$f":"BH14","v":0}]
[null,null,null,"ZZZ","ZZZ","DOUBLURE"]
[{"$f":"A14","v":0},"00:00:00","00:00:00","ZZZ","ZZZ","DEBUT","2017-07-09",null,null,null,null,null,null,null,null,null,null,null,null,null,null,null,null,null,null,null,null,null,null,null,null,null,null,null,null,null,null,null,null,null,null,null,null,null,null,null,null,null,null,null,null,null,null,null,null,null,null,null,{"$f":"BG14","v":0},{"$f":"BH14","v":0}]
[0,"00:00:00","00:00:00","ZZZ","ZZZ","FIN",null,null,null,null,null,null,null,null,null,null,null,null,null,null,null,null,null,null,null,null,null,null,null,null,null,null,null,null,null,null,null,null,null,null,null,null,null,null,null,null,null,null,null,null,null,null,null,null,null,null,null,null,{"$f":"BG14","v":0},{"$f":"BH14","v":0}]

{"sheet":"Reporting","index":1,"n_rows":58,"n_cols":3,"rows_kept":58,"cut":false,"hidden":false,"merged":[]}
[]
[]
[null,2017]
[]
[]
[]
[null,"POSTES"]
[null,"Parties communes - Bureaux, cabinets de consulations, radiologie, laboratoire",2]
[null,"Parties communes - IRM"]
[null,"Parties communes - Chimiothérapie"]
[null,"Parties communes - Scintigraphie"]
[null,"Services"]
[null,"Services - Zone 4"]
[null,"Ambulatoire - Dialyse"]
[null,"Bloc opératoire - Début de journée"]
[null,"Bloc opératoire  - Fin de  journée"]
[null,"Hôtesse prise de commande repas et accueil"]
[]
[null,"COMPETENCES"]
[null,"Hygiène des mains"]
[null,"Le savoir  être dont charte de bonne conduite",14]
[null,"Tenue de travail services",6]
[null,"Tenue de travail au bloc opératoire",6]
[null,"La classification des locaux",6]
[null,"Les fondamentaux du bionettoyage (propre/sale, haut, pas) etc",6]
[null,"Protocole de de préparation et d'utilisation du chariot",6]
[null,"L'utilisation des produits et leur dilution",6]
[null,"L'utilisation  des lavettes/rasants",6]
[null,"La désinfection des siphons",6]
[null,"Le principe de l'alternance",6]
[null,"La désinfection des bennes déchets",6]
[null,"Le protocoles de nettoyage des parties communes zone 1 et 2",6]
[null,"Le protocoles de nettoyage des parties communes zone 3 et 4",6]
[null,"Protocole de nettoyage sanitaires et salle de bain",6]
[null,"Protocole nettoyage d'une chambre en quotidien et sortie",6]
[null,"Protocole nettoyage d'une chambre en  isolement infectieux en quotidien et sortie",6]
[null,"Protocole nettoyage d'une chambre en  isolement protecteur en quotidien et sortie",6]
[null,"Distribution des repas et les isolements et débarrassage",6]
[null,"Prise de commande des repas",6]
[null,"Commande des produits",6]
[null,"Gestion du linge plat et distribution",6]
[null,"Gestion des tenues et distribution",6]
[null,"Gestions du nettoyage des lavettes et des rasants",6]
[null,"Circuit déchets, linge, linge de nettoyage ",6]
[null,"La répartition des taches",6]
[null,"Utilisation autolaveuse",6]
[null,"Utilisation  monobrosse",6]
[null,"Utilisation des machines vapeur",6]
[null,"Nettoyage dune salle de  bloc début de programme",6]
[null,"Le remplissage de la grille d'autocontrole",6]
[null,"Nettoyage dune salle de  bloc intersalle",6]
[null,"Nettoyage dune salle de  bloc fin de programme",6]
[null,"Nettoyage dune salle de  bloc infecté",6]
[null,"Nettoyage dune salle de  bloc fin de programme",6]
[null,"Entetien de fond des sols",6]
[null,"La gestion des zones à risques (zone exposition, etc)",6]
[null,"le remplissage de la grille d'autocontrole",6]
[null,"Sensibilisation AES",6]